bitfinex/quotes_SOLUSD_20250609
["timestamp","ask_amount","ask_price","bid_price","bid_amount"]
[1749476899025,41.16678923,154.2,154.17,6.48634624]
[1749476899207,7.6704,154.24,154.19,15.16678923]
[1749476899409,41.16678923,154.22,154.18,18.64964886]
[1749476899704,41.16678923,154.22,154.15,11.32432314]
[1749476899705,15.16678923,154.19,154.16,6.48659489]
[1749476899911,15.16678923,154.17,154.16,6.48659489]
[1749476900628,15.16678923,154.17,154.15,17.52700457]
[1749476900830,26.0,154.22,154.15,11.04]
[1749476900831,15.16678923,154.16,154.15,11.04]
[1749476902427,15.16678923,154.16,154.15,17.5271878]
[1749476903331,15.16678923,154.17,154.15,17.5271878]
[1749476904340,15.16678923,154.16,154.15,17.5271878]
[1749476905628,15.16678923,154.17,154.15,17.5271878]
[1749476905834,4.73908806,154.21,154.16,18.64964886]
[1749476905835,15.16678923,154.2,154.16,18.64964886]
[1749476906217,26.0,154.21,154.17,15.16678923]
[1749476906218,41.16678923,154.21,154.17,15.16678923]
[1749476906416,15.16678923,154.23,154.19,18.64964886]
[1749476906616,15.16678923,154.23,154.19,33.81643809]
[1749476906946,15.16678923,154.2,154.1,22.71252432]
[1749476907127,15.16678923,154.15,154.11,18.64964886]
[1749476907439,15.16678923,154.16,154.12,11.1]
[1749476907760,26.0,154.2,154.14,18.64964886]
[1749476907934,15.16678923,154.16,154.14,18.64964886]
[1749476908258,15.16678923,154.16,154.13,6.48802958]
[1749476909242,15.16678923,154.15,154.13,6.48802958]
[1749476909426,24.69781456,154.15,154.12,17.5883474]
[1749476910224,11.23365148,154.19,154.12,17.5883474]
[1749476910555,26.0,154.2,154.14,6.48760866]
[1749476910735,24.69781456,154.17,154.14,6.48760866]
[1749476911121,24.69781456,154.17,154.13,18.64964886]
[1749476911368,24.69781456,154.14,154.1,11.1]
[1749476911653,26.0,154.17,154.1,11.1]
[1749476911654,24.69781456,154.11,154.1,11.1]
[1749476911953,30.75196068,154.17,154.1,11.1]
[1749476911954,24.69781456,154.12,154.1,11.1]
[1749476912741,24.69781456,154.12,154.1,17.58924261]
[1749476913669,24.69781456,154.12,154.1,11.1]
[1749476914851,24.69781456,154.12,154.1,17.58927845]
[1749476915155,24.69781456,154.13,154.1,17.58927845]
[1749476915343,24.69781456,154.12,154.1,17.58927845]
[1749476915746,24.69781456,154.12,154.1,11.1]
[1749476916047,24.69781456,154.13,154.1,17.58925327]
[1749476916551,6.48689416,154.16,154.1,17.58925327]
[1749476916849,24.69781456,154.13,154.1,17.58925327]
[1749476917332,24.69781456,154.14,154.1,17.58925327]
[1749476917523,24.69781456,154.13,154.1,17.58925327]
[1749476917724,24.69781456,154.13,154.1,11.1]
[1749476917948,24.69781456,154.12,154.1,11.1]
[1749476918636,24.69781456,154.11,154.1,11.1]
[1749476920558,31.18668614,154.11,154.1,11.1]
[1749476921066,26.0,154.09,154.02,87.7]
[1749476921243,31.18668614,154.11,154.03,11.1]
[1749476921244,24.69781456,154.05,154.03,11.1]
[1749476921551,24.69781456,154.06,154.03,11.1]
[1749476922126,26.0,154.08,154.03,17.5919759]
[1749476922332,24.69781456,154.06,154.03,17.5919759]
[1749476923056,24.69781456,154.05,154.03,17.5919759]
[1749476923354,24.69781456,154.06,154.03,17.5919759]
[1749476926059,7.6746,154.12,154.04,43.34746342]
[1749476926232,7.6746,154.12,154.08,24.69781456]
[1749476926433,7.6746,154.12,154.09,17.58966406]
[1749476926655,32.37241456,154.12,154.09,11.1]
[1749476927057,58.37241456,154.12,154.09,11.1]
[1749476927358,24.69781456,154.1,154.09,11.1]
[1749476927564,24.69781456,154.11,154.09,17.5897138]
[1749476930047,24.69781456,154.14,154.09,42.28752836]
[1749476931170,24.69781456,154.12,154.09,17.5897138]
[1749476931464,24.69781456,154.14,154.09,42.28752836]
[1749476931765,6.4494,154.16,154.1,18.64964886]
[1749476931946,24.69781456,154.19,154.14,24.69781456]
[1749476932145,7.7914,154.2,154.15,35.97781456]
[1749476932352,58.48921456,154.2,154.15,35.97781456]
[1749476932747,32.48921456,154.2,154.15,35.97781456]
[1749476933063,24.69781456,154.18,154.15,11.28]
[1749476933266,24.69781456,154.18,154.15,17.76715644]
[1749476933267,15.15013782,154.18,154.15,17.76715644]
[1749476934266,40.27675633,154.2,154.15,17.76715644]
[1749476934267,33.7914,154.2,154.16,18.64964886]
[1749476934454,33.7914,154.2,154.15,32.91729426]
[1749476934455,26.0,154.2,154.17,15.15013782]
[1749476934773,12.46637127,154.24,154.17,15.15013782]
[1749476934954,15.15013782,154.2,154.16,33.79978668]
[1749476935154,15.15013782,154.2,154.16,18.64964886]
[1749476935355,24.68377769,154.19,154.15,17.76715644]
[1749476935553,26.0,154.22,154.15,17.76715644]
[1749476935880,24.68377769,154.19,154.15,17.76715644]
[1749476936367,24.68377769,154.19,154.15,42.45093413]
[1749476936935,24.68377769,154.19,154.15,17.76715644]
[1749476937243,6.4846914,154.21,154.15,11.28]
[1749476937244,24.68377769,154.17,154.15,11.28]
[1749476938049,24.68377769,154.19,154.15,42.45095291]
[1749476938254,24.68377769,154.2,154.15,42.45095291]
[1749476938467,24.68377769,154.19,154.15,17.76717522]
[1749476939164,32.48478292,154.21,154.15,42.45095291]
[1749476939165,26.0,154.21,154.15,42.45095291]
[1749476939352,26.0,154.21,154.15,17.76717522]
[1749476939353,24.68377769,154.19,154.15,17.76717522]
[1749476939746,24.68377769,154.18,154.15,17.76717522]
[1749476940068,24.68377769,154.17,154.15,11.28]
[1749476940269,24.68377769,154.16,154.15,11.28]
[1749476940768,26.0,154.19,154.15,11.28]
[1749476940769,24.68377769,154.17,154.15,11.28]
[1749476940973,26.0,154.21,154.15,17.76714571]
[1749476941273,24.68377769,154.19,154.15,17.76714571]
[1749476942372,24.68377769,154.17,154.15,11.28]
[1749476942548,24.68377769,154.16,154.15,11.28]
[1749476944354,57.17054468,154.16,154.1,17.76915566]
[1749476944667,26.0,154.13,154.1,11.28]
[1749476944866,24.68377769,154.11,154.1,11.28]
[1749476946570,31.17264927,154.11,154.1,11.28]
[1749476946773,24.68377769,154.11,154.1,11.28]
[1749476947969,26.0,154.13,154.1,11.28]
[1749476948161,24.68377769,154.11,154.1,11.28]
[1749476950355,24.68377769,154.12,154.1,17.76929266]
[1749476950771,50.68377769,154.13,154.1,17.76929266]
[1749476951565,24.68377769,154.12,154.1,17.76929266]
[1749476951747,24.68377769,154.11,154.1,11.28]
[1749476952572,24.68377769,154.12,154.1,11.28]
[1749476952775,24.68377769,154.11,154.1,11.28]
[1749476953189,26.0,154.08,154.05,11.28]
[1749476953382,24.68377769,154.06,154.05,11.28]
[1749476956966,24.68377769,154.06,154.05,17.77139889]
[1749476957293,67.3,154.08,154.05,11.28]
[1749476957467,6.2514,154.1,154.05,42.45517658]
[1749476957673,24.68377769,154.1,154.06,24.68377769]
[1749476957971,50.68377769,154.1,154.06,24.68377769]
[1749476958171,24.68377769,154.09,154.06,18.64964886]
[1749476958683,50.68377769,154.1,154.06,18.64964886]
[1749476958986,24.68377769,154.07,154.05,11.28]
[1749476959893,24.68377769,154.07,154.05,17.77126675]
[1749476960384,24.68377769,154.06,154.05,11.28]
[1749476962691,31.1748586,154.06,154.01,6.49297919]
[1749476962865,24.68377769,154.02,154.01,6.49297919]
[1749476963068,24.68377769,154.02,154.0,6.49332303]
[1749476964094,24.68377769,154.01,153.99,55.05381601]
[1749476964466,32.4919449,154.04,153.99,55.05381601]
[1749476964467,24.68377769,154.0,153.99,55.05381601]
[1749476964782,24.68377769,154.01,153.99,55.05381601]
[1749476966488,24.68377769,154.02,153.99,55.05381601]
[1749476966880,50.68377769,154.04,153.99,79.7375937]
[1749476967065,26.0,154.03,153.99,79.7375937]
[1749476967264,50.68377769,154.03,153.99,79.7375937]
[1749476967484,26.0,154.03,153.99,79.7375937]
[1749476968089,50.68377769,154.03,153.99,55.05381601]
[1749476968990,24.68377769,154.04,153.99,95.97241414]
[1749476969193,26.0,154.05,154.01,24.68377769]
[1749476969768,24.68377769,154.06,154.02,24.68377769]
[1749476969970,24.68377769,154.06,154.01,24.68377769]
[1749476970395,24.68377769,154.05,154.0,18.64964886]
[1749476970595,24.68377769,154.05,154.01,24.68377769]
[1749476970970,24.68377769,154.06,154.02,6.49266329]
[1749476971474,33.9652,154.07,154.02,6.49266329]
[1749476971671,7.9113,154.11,154.04,24.68377769]
[1749476971898,24.68377769,154.09,154.04,24.68377769]
[1749476972086,50.68377769,154.09,154.05,11.18]
[1749476972268,50.68377769,154.09,154.05,35.86377769]
[1749476972894,7.9113,154.11,154.06,31.17475523]
[1749476973099,32.59507769,154.11,154.06,31.17475523]
[1749476973306,24.68377769,154.1,154.06,31.17475523]
[1749476973801,24.68377769,154.1,154.06,6.49097754]
[1749476974276,24.68377769,154.09,154.06,6.49097754]
[1749476975499,24.68377769,154.1,154.06,6.49097754]
[1749476976582,24.68377769,154.09,154.06,6.49097754]
[1749476976785,33.9113,154.11,154.06,6.49097754]
[1749476976786,50.68377769,154.11,154.06,31.17475523]
[1749476976988,50.68377769,154.11,154.07,24.68377769]
[1749476978895,26.0,154.11,154.06,22.71842139]
[1749476979098,50.68377769,154.11,154.06,22.71842139]
[1749476981380,41.16458065,154.11,154.06,37.88300204]
[1749476982183,7.7065,154.15,154.1,15.16458065]
[1749476982606,22.87108065,154.15,154.11,15.16458065]
[1749476982790,48.87108065,154.15,154.11,15.16458065]
[1749476983186,4.72882944,154.17,154.13,15.16458065]
[1749476983395,7.889,154.19,154.15,6.4871878]
[1749476983396,15.16458065,154.18,154.15,6.4871878]
[1749476983703,7.889,154.19,154.14,6.48743069]
[1749476983704,15.16458065,154.17,154.14,6.48743069]
[1749476985283,24.69218923,154.17,154.14,6.48743069]
[1749476985684,24.69218923,154.18,154.14,6.48743069]
[1749476986014,24.69218923,154.18,154.14,31.17961992]
[1749476986587,58.58118923,154.19,154.14,31.17961992]
[1749476986790,24.69218923,154.18,154.13,18.64964886]
[1749476986985,24.69218923,154.18,154.14,24.69218923]
[1749476987993,24.69218923,154.18,154.15,6.4871878]
[1749476988509,24.69218923,154.16,154.11,52.24]
[1749476988809,40.37456983,154.19,154.11,35.87218923]
[1749476988810,24.69218923,154.15,154.11,35.87218923]
[1749476989185,24.69218923,154.16,154.12,31.18063978]
[1749476989904,6.05854028,154.23,154.12,31.18063978]
[1749476989905,24.69218923,154.2,154.15,24.69218923]
[1749476990109,7.8229,154.23,154.17,6.48634624]
[1749476990110,24.69218923,154.21,154.17,6.48634624]
[1749476990296,24.69218923,154.21,154.17,31.17853547]
[1749476990613,26.0,154.2,154.17,31.17853547]
[1749476990785,24.69218923,154.21,154.17,31.17853547]
[1749476990990,50.69218923,154.21,154.17,31.17853547]
[1749476991191,50.69218923,154.21,154.17,6.48634624]
[1749476993115,26.0,154.21,154.17,6.48634624]
[1749476993313,50.69218923,154.21,154.17,6.48634624]
[1749476993494,26.0,154.21,154.18,24.69218923]
[1749476993888,50.69218923,154.23,154.18,24.69218923]
[1749476994101,24.69218923,154.23,154.2,6.4850843]
[1749476994604,50.69218923,154.23,154.2,6.4850843]
[1749476995914,24.69218923,154.22,154.18,25.1355744]
[1749476996588,24.69218923,154.21,154.18,25.1355744]
[1749476996887,24.69218923,154.21,154.18,6.48592554]
[1749477000213,26.0,154.23,154.18,31.17811477]
[1749477000414,24.69218923,154.22,154.18,31.17811477]
[1749477000621,24.69218923,154.22,154.18,25.1355744]
[1749477001887,26.0,154.23,154.18,49.82776363]
[1749477001888,50.69218923,154.23,154.18,49.82776363]
[1749477003129,50.69218923,154.23,154.19,18.64964886]
[1749477003698,26.0,154.23,154.19,43.34183809]
[1749477004519,50.69218923,154.23,154.2,6.4850843]
[1749477005122,50.69218923,154.23,154.15,87.98432314]
[1749477005123,26.0,154.2,154.12,1.5119]
[1749477005302,24.69218923,154.16,154.13,29.70964886]
[1749477005496,27.6315,154.2,154.13,11.06]
[1749477005497,26.0,154.2,154.13,11.06]
[1749477005802,55.48666937,154.29,154.18,24.69218923]
[1749477005803,50.69218923,154.23,154.18,24.69218923]
[1749477006015,50.69218923,154.23,154.19,11.06]
[1749477006414,26.0,154.23,154.2,31.17727353]
[1749477006609,26.0,154.23,154.2,6.4850843]
[1749477006912,50.69218923,154.23,154.2,6.4850843]
[1749477007313,41.14035516,154.23,154.2,6.4850843]
[1749477008025,15.14035516,154.21,154.19,11.06]
[1749477008219,15.14035516,154.2,154.19,11.06]
[1749477008418,41.14035516,154.2,154.15,11.06]
[1749477008622,15.14035516,154.16,154.15,11.06]
[1749477010612,15.14035516,154.16,154.12,6.48826252]
[1749477010820,15.14035516,154.13,154.12,6.48826252]
[1749477011030,15.14035516,154.13,154.11,48.44]
[1749477011031,15.14035516,154.13,154.11,54.92869187]
[1749477011234,15.14035516,154.12,154.11,54.92869187]
[1749477011541,26.0,154.15,154.11,54.92869187]
[1749477011740,15.14035516,154.17,154.12,33.79000402]
[1749477012033,15.14035516,154.17,154.11,54.92869187]
[1749477012034,15.14035516,154.14,154.11,54.92869187]
[1749477012447,15.14035516,154.13,154.11,54.92869187]
[1749477013229,73.50593303,154.18,154.11,54.92869187]
[1749477013429,15.14035516,154.14,154.11,54.92869187]
[1749477014837,15.14035516,154.15,154.11,54.92869187]
[1749477015417,15.14035516,154.12,154.11,48.44]
[1749477016012,15.14035516,154.12,154.11,11.06]
[1749477017534,15.14035516,154.12,154.08,6.48999979]
[1749477017721,15.14035516,154.09,154.08,6.48999979]
[1749477017921,15.14035516,154.09,154.07,98.76]
[1749477017922,15.14035516,154.09,154.07,17.55040766]
[1749477018344,15.14035516,154.1,154.07,17.55040766]
[1749477018740,32.6393,154.12,154.07,17.55040766]
[1749477018921,15.14035516,154.12,154.08,15.14035516]
[1749477019114,15.14035516,154.12,154.08,33.79000402]
[1749477019312,15.14035516,154.13,154.08,33.79000402]
[1749477019537,15.14035516,154.12,154.08,33.79000402]
[1749477019735,15.14035516,154.12,154.08,18.64964886]
[1749477020742,15.14035516,154.1,154.07,58.57040766]
[1749477021017,32.48771132,154.14,154.07,58.57040766]
[1749477021018,15.14035516,154.09,154.07,17.55040766]
[1749477021627,15.14035516,154.08,154.07,11.06]
[1749477022641,15.14035516,154.09,154.07,17.55055624]
[1749477022845,26.0,154.14,154.07,17.55055624]
[1749477022846,37.20674272,154.14,154.07,17.55055624]
[1749477023038,15.14035516,154.1,154.07,17.55055624]
[1749477023354,24.7132703,154.1,154.07,17.55055624]
[1749477023549,24.7132703,154.1,154.01,48.42]
[1749477023550,24.7132703,154.08,154.01,48.42]
[1749477023849,24.7132703,154.03,154.01,17.55303838]
[1749477024051,24.7132703,154.02,154.01,17.55303838]
[1749477024237,24.7132703,154.03,154.01,17.55303838]
[1749477024432,24.7132703,154.03,154.01,11.06]
[1749477024621,27.6358,154.07,154.01,11.06]
[1749477024951,24.7132703,154.02,154.01,11.06]
[1749477025253,24.7132703,154.03,154.01,17.55297125]
[1749477026324,50.7132703,154.05,154.01,17.55297125]
[1749477027129,24.7132703,154.06,154.02,18.64964886]
[1749477027441,24.7132703,154.07,154.02,43.36291916]
[1749477027644,24.7132703,154.07,154.02,18.64964886]
[1749477027949,24.7132703,154.06,154.02,18.64964886]
[1749477028261,24.7132703,154.05,154.03,6.49224177]
[1749477029251,26.0,154.08,154.03,6.49224177]
[1749477029429,24.7132703,154.07,154.03,6.49224177]
[1749477029634,50.7132703,154.08,154.04,43.36291916]
[1749477029837,1.5158,154.11,154.06,24.7132703]
[1749477030059,24.7132703,154.1,154.06,24.7132703]
[1749477030377,24.7132703,154.1,154.07,6.49055624]
[1749477030952,24.7132703,154.1,154.01,165.94216157]
[1749477030953,50.7132703,154.08,154.02,6.49266329]
[1749477031146,24.7132703,154.04,154.02,6.49266329]
[1749477031833,24.7132703,154.06,154.02,6.49266329]
[1749477032041,31.1336703,154.07,154.02,31.20593359]
[1749477032274,31.1336703,154.07,154.02,6.49266329]
[1749477032452,31.1336703,154.07,154.02,31.20593359]
[1749477032778,50.7132703,154.08,154.04,18.64964886]
[1749477033073,24.7132703,154.07,154.04,18.64964886]
[1749477033557,50.7132703,154.08,154.04,18.64964886]
[1749477034071,50.7132703,154.08,154.05,6.49139889]
[1749477034748,24.7132703,154.07,154.05,6.49139889]
[1749477037166,50.7132703,154.08,154.05,6.49139889]
[1749477037372,24.7132703,154.07,154.05,6.49139889]
[1749477037670,24.7132703,154.06,154.02,81.98492852]
[1749477037848,24.7132703,154.06,154.03,25.14189063]
[1749477038165,41.04,154.07,154.01,11.06]
[1749477038364,41.04,154.07,154.01,17.55291923]
[1749477038365,24.7132703,154.03,154.01,17.55291923]
[1749477038745,24.7132703,154.04,154.01,17.55291923]
[1749477039060,24.7132703,154.03,154.01,17.55291923]
[1749477039365,24.7132703,154.03,154.01,11.06]
[1749477040277,24.7132703,154.02,154.01,11.06]
[1749477041834,24.7132703,154.02,153.99,6.49376979]
[1749477042142,24.7132703,154.0,153.98,6.4941992]
[1749477042358,47.53229889,154.03,153.98,6.4941992]
[1749477042359,24.7132703,153.99,153.98,6.4941992]
[1749477042640,24.7132703,153.99,153.97,11.06]
[1749477042858,24.7132703,153.99,153.97,17.55471696]
[1749477043462,24.7132703,154.0,153.97,17.55471696]
[1749477044355,32.5651,154.04,153.99,18.64964886]
[1749477044548,26.0,154.04,154.0,24.7132703]
[1749477044750,24.7132703,154.03,153.99,43.36291916]
[1749477045250,24.7132703,154.03,153.99,18.64964886]
[1749477045452,24.7132703,154.03,153.97,74.85164623]
[1749477045453,24.7132703,154.0,153.97,17.55471696]
[1749477046692,32.49218857,154.04,153.97,17.55471696]
[1749477046851,24.7132703,154.01,153.97,42.26798726]
[1749477047466,32.49218857,154.04,153.97,17.55471696]
[1749477047667,24.7132703,154.0,153.97,17.55471696]
[1749477049646,24.7132703,153.99,153.97,17.55471696]
[1749477050147,6.49242185,154.03,153.97,17.55471696]
[1749477050351,24.7132703,153.99,153.97,17.55471696]
[1749477052167,24.7132703,153.99,153.92,105.60775656]
[1749477052168,24.7132703,153.98,153.93,6.49645942]
[1749477052358,24.7132703,153.97,153.94,11.06]
[1749477052573,24.7132703,153.97,153.94,17.55571821]
[1749477053088,32.6222,154.01,153.95,43.36291916]
[1749477053254,32.6222,154.01,153.94,33.79581175]
[1749477053255,32.6222,154.01,153.97,33.83223613]
[1749477053570,15.18258727,154.02,153.97,15.18258727]
[1749477053749,41.18258727,154.02,153.98,15.18258727]
[1749477053944,26.0,154.02,153.98,15.18258727]
[1749477054173,49.2365,154.05,153.95,59.70964886]
[1749477054174,49.2365,154.05,153.99,33.83223613]
[1749477054368,15.18258727,154.04,153.99,33.83223613]
[1749477054657,41.18258727,154.04,153.99,33.83223613]
[1749477054869,41.18258727,154.04,154.0,6.49350649]
[1749477055155,41.18258727,154.04,154.0,21.67609376]
[1749477055355,41.18258727,154.04,154.0,31.22727724]
[1749477055356,50.73377075,154.04,154.0,31.22727724]
[1749477055647,26.0,154.04,154.01,18.64964886]
[1749477055845,32.91027075,154.05,154.01,18.64964886]
[1749477056055,24.73377075,154.03,154.0,6.49350649]
[1749477056868,24.73377075,154.04,154.0,31.22727724]
[1749477057345,24.73377075,154.04,154.0,6.49350649]
[1749477058288,24.73377075,154.04,154.0,31.22727724]
[1749477058658,24.73377075,154.03,154.0,6.49350649]
[1749477060178,24.73377075,154.02,154.0,6.49350649]
[1749477060573,24.73377075,154.04,154.0,6.49350649]
[1749477060992,8.1765,154.05,154.0,6.49350649]
[1749477060993,6.6222,154.05,154.01,43.38341961]
[1749477061180,1.604,154.09,154.04,24.73377075]
[1749477061181,24.73377075,154.08,154.04,24.73377075]
[1749477061382,24.73377075,154.08,154.0,22.72727272]
[1749477061383,1.604,154.09,154.05,24.73377075]
[1749477061576,50.73377075,154.09,154.05,24.73377075]
[1749477061775,50.73377075,154.09,154.02,18.64964886]
[1749477061776,24.73377075,154.07,154.02,18.64964886]
[1749477061974,24.73377075,154.07,154.04,18.64964886]
[1749477062173,24.73377075,154.07,154.0,22.72727272]
[1749477062174,24.73377075,154.05,154.0,6.49350649]
[1749477062374,24.73377075,154.02,154.0,6.49350649]
[1749477062576,24.73377075,154.03,154.0,6.49350649]
[1749477062797,24.73377075,154.04,154.0,6.49350649]
[1749477063267,24.73377075,154.03,154.0,6.49350649]
[1749477063472,26.0,154.05,153.99,17.55379129]
[1749477063473,24.73377075,154.01,153.99,17.55379129]
[1749477063798,24.73377075,154.02,153.99,17.55379129]
[1749477063999,24.73377075,154.03,153.99,42.28756204]
[1749477064204,50.73377075,154.03,153.99,42.28756204]
[1749477064390,26.0,154.03,153.99,42.28756204]
[1749477064701,24.73377075,154.02,153.99,17.55379129]
[1749477064996,50.73377075,154.03,153.99,17.55379129]
[1749477067108,24.73377075,154.02,153.99,17.55379129]
[1749477067274,50.73377075,154.03,153.99,17.55379129]
[1749477067675,24.73377075,154.02,153.99,17.55379129]
[1749477068302,24.73377075,154.0,153.99,36.20344015]
[1749477068497,24.73377075,154.0,153.99,17.55379129]
[1749477068797,32.6239,154.03,153.99,17.55379129]
[1749477069106,24.73377075,154.02,153.99,17.55379129]
[1749477069483,57.35767075,154.03,153.99,17.55379129]
[1749477069797,24.73377075,154.01,153.99,17.55379129]
[1749477070177,32.6239,154.03,153.99,17.55379129]
[1749477070178,6.6239,154.03,154.0,43.38341961]
[1749477070382,24.73377075,154.03,154.0,18.64964886]
[1749477070709,24.73377075,154.02,153.99,17.55379129]
[1749477071598,24.73377075,154.01,153.99,17.55379129]
[1749477072077,24.73377075,154.0,153.99,17.55379129]
[1749477072283,24.73377075,154.0,153.99,17.55392817]
[1749477073011,24.73377075,154.0,153.99,11.06]
[1749477073189,24.73377075,154.0,153.97,87.7]
[1749477073386,24.73377075,153.99,153.97,87.7]
[1749477073586,24.73377075,154.0,153.97,94.1947235]
[1749477073886,24.73377075,154.0,153.97,6.4947235]
[1749477075005,67.04,154.02,153.97,6.4947235]
[1749477075006,24.73377075,153.99,153.97,6.4947235]
[1749477076394,24.73377075,154.0,153.97,6.4947235]
[1749477077495,15.18510783,154.0,153.97,6.4947235]
[1749477077794,15.18510783,154.01,153.97,21.67983133]
[1749477078392,15.18510783,154.01,153.97,37.9167606]
[1749477080298,32.22510783,154.02,153.97,22.73165277]
[1749477080501,15.18510783,154.0,153.97,6.4947235]
[1749477080809,1.6079,154.03,153.97,6.4947235]
[1749477080810,1.6079,154.03,153.98,33.83475669]
[1749477081309,16.79300783,154.03,153.98,33.83475669]
[1749477082004,16.79300783,154.03,153.99,6.49392817]
[1749477082508,15.18510783,154.03,153.99,37.91385644]
[1749477082712,15.18510783,154.03,153.99,33.78874861]
[1749477083714,1.5289,154.07,154.02,18.64964886]
[1749477083915,1.5289,154.07,154.03,15.18510783]
[1749477084216,6.3155,154.09,154.05,15.18510783]
[1749477084615,6.3155,154.09,154.04,6.4918203]
[1749477084616,21.50060783,154.09,154.04,6.4918203]
[1749477084793,21.50060783,154.09,154.05,15.18510783]
[1749477086309,21.50060783,154.09,154.06,6.49097754]
[1749477087088,16.72180783,154.11,154.06,21.67608537]
[1749477087509,15.18510783,154.1,154.06,21.67608537]
[1749477087817,1.5367,154.11,154.06,21.67608537]
[1749477087993,15.18510783,154.12,154.08,15.18510783]
[1749477088187,32.665,154.13,154.08,15.18510783]
[1749477088188,6.665,154.13,154.09,6.4897138]
[1749477088419,1.6536,154.15,154.11,15.18510783]
[1749477088598,15.18510783,154.12,154.08,6.49004058]
[1749477088797,15.18510783,154.09,154.05,11.04]
[1749477088990,15.18510783,154.06,154.05,11.04]
[1749477089190,15.18510783,154.07,154.05,11.04]
[1749477090091,15.18510783,154.06,154.05,11.04]
[1749477091096,15.18510783,154.06,154.01,17.53308486]
[1749477091303,24.73550245,154.03,154.01,17.53308486]
[1749477093194,6.4909586,154.07,154.01,17.53308486]
[1749477093398,24.73550245,154.04,154.01,17.53308486]
[1749477093899,24.73550245,154.03,154.01,17.53308486]
[1749477095701,24.73550245,154.02,154.01,11.04]
[1749477095900,24.73550245,154.02,154.01,17.53308486]
[1749477096100,24.73550245,154.02,153.95,16.23822983]
[1749477096317,41.02,154.05,153.98,18.64964886]
[1749477096318,24.73550245,154.01,153.98,18.64964886]
[1749477096615,26.0,154.04,153.99,6.49392817]
[1749477096821,24.73550245,154.02,153.99,6.49392817]
[1749477097220,24.73550245,154.03,153.99,6.49392817]
[1749477097428,24.73550245,154.02,153.99,6.49392817]
[1749477099925,50.73550245,154.04,154.0,43.38515131]
[1749477100124,24.73550245,154.03,154.0,18.64964886]
[1749477100504,24.73550245,154.03,154.0,25.14280547]
[1749477100705,24.73550245,154.03,154.0,6.49315661]
[1749477100904,24.73550245,154.02,153.99,6.49376343]
[1749477101106,24.73550245,154.01,153.99,6.49376343]
[1749477101907,26.0,154.04,153.99,6.49376343]
[1749477101908,24.73550245,154.02,153.99,6.49376343]
[1749477102107,26.0,154.04,153.99,31.22926588]
[1749477102417,50.73550245,154.04,153.99,31.22926588]
[1749477102617,24.73550245,154.03,153.99,6.49376343]
[1749477103425,24.73550245,154.02,153.99,6.49376343]
[1749477104735,24.73550245,154.01,153.99,6.49376343]
[1749477105030,24.73550245,154.01,153.98,6.49418802]
[1749477107220,24.73550245,154.02,153.98,6.49418802]
[1749477108210,8.0558,154.03,153.98,25.14383688]
[1749477108406,50.73550245,154.05,154.0,31.22900894]
[1749477109017,7.858,154.07,154.01,18.64964886]
[1749477109210,7.858,154.07,154.02,24.73550245]
[1749477109407,6.2396,154.07,154.03,43.38515131]
[1749477109717,24.73550245,154.08,154.04,24.73550245]
[1749477110212,24.73550245,154.08,154.04,18.64964886]
[1749477110529,67.02,154.1,153.98,16.23585137]
[1749477110530,7.9378,154.04,153.98,16.23585137]
[1749477110727,24.73550245,153.99,153.96,29.68964886]
[1749477111237,15.18705586,154.0,153.96,29.68964886]
[1749477111617,15.18705586,153.99,153.96,52.4228263]
[1749477111830,15.18705586,153.99,153.96,36.18484241]
[1749477112016,6.49226091,154.03,153.96,36.18484241]
[1749477112017,15.18705586,153.98,153.96,36.18484241]
[1749477113418,15.18705586,153.99,153.96,36.18484241]
[1749477116827,26.0,154.03,153.96,36.18484241]
[1749477117038,15.18705586,154.01,153.96,67.60988216]
[1749477118334,15.18705586,154.0,153.96,52.4228263]
[1749477119736,15.18705586,154.01,153.96,67.60988216]
[1749477121139,15.18705586,154.01,153.96,155.30988216]
[1749477121342,26.0,154.03,153.96,155.30988216]
[1749477121545,15.18705586,154.01,153.96,155.30988216]
[1749477122636,15.18705586,154.01,153.96,140.1228263]
[1749477122831,15.18705586,153.99,153.96,123.88484241]
[1749477123138,15.18705586,153.99,153.96,36.18484241]
[1749477123359,6.49270266,154.02,153.96,36.18484241]
[1749477123360,15.18705586,153.98,153.96,36.18484241]
[1749477123529,15.18705586,153.99,153.96,36.18484241]
[1749477124325,15.18705586,153.97,153.96,11.04]
[1749477124520,15.18705586,153.97,153.95,6.49557362]
[1749477124826,15.18705586,153.96,153.94,6.49599218]
[1749477125029,15.18705586,153.97,153.94,6.49599218]
[1749477125420,6.49395168,153.99,153.94,6.49599218]
[1749477125633,15.18705586,153.97,153.94,6.49599218]
[1749477125837,6.49395168,153.99,153.94,6.49599218]